bitfinex-derivatives/quotes_ETHF0:USTF0_20240826
["timestamp","ask_amount","ask_price","bid_price","bid_amount"]
[1724676894774,0.3534,2724.4,2724.2,0.36698]
[1724676894991,0.3534,2724.4,2724.3,0.36697]
[1724676895179,3.2078,2724.5,2724.4,0.36696]
[1724676895775,3.2078,2724.5,2724.4,4.03736]
[1724676895991,3.2078,2724.5,2724.4,9.03736]
[1724676896486,3.2078,2724.5,2724.4,4.03736]
[1724676900583,3.2078,2724.5,2724.4,0.36696]
[1724676900780,3.2078,2724.5,2724.2,0.71808]
[1724676901010,3.2078,2724.5,2724.2,0.3511]
[1724676901282,3.57475,2724.5,2724.3,0.36696]
[1724676901481,0.36696,2724.4,2724.3,0.36696]
[1724676901681,3.2078,2724.5,2724.3,0.36696]
[1724676901682,3.57475,2724.5,2724.3,0.36696]
[1724676901979,3.2078,2724.5,2724.4,0.36696]
[1724676902185,0.00412595,2724.8,2724.7,0.36692]
[1724676902382,0.00412595,2724.8,2724.7,3.6704]
[1724676902574,0.36693,2724.6,2724.5,0.36694]
[1724676902779,0.36693,2724.6,2724.2,0.3511]
[1724676902780,0.91733,2724.6,2724.2,0.3511]
[1724676902980,0.36695,2724.5,2724.4,0.36695]
[1724676903181,0.36694,2724.6,2724.5,0.36694]
[1724676903881,3.2078,2724.7,2724.6,0.36693]
[1724676904084,0.00412595,2724.8,2724.7,0.36692]
[1724676904283,0.00412595,2724.8,2724.7,4.41972]
[1724676904777,0.00412595,2724.8,2724.7,10.33702]
[1724676904984,1e-08,2724.8,2724.7,11.25432]
[1724676905287,1e-08,2724.8,2724.7,15.48405631]
[1724676905473,0.3864,2725.4,2725.3,0.36683]
[1724676905675,0.3864,2725.4,2724.9,3.17]
[1724676905676,0.75322,2725.4,2725.2,0.36684]
[1724676905876,0.75322,2725.4,2725.3,0.36683]
[1724676906083,0.3864,2725.4,2724.9,3.17]
[1724676906381,0.18666607,2726.5,2725.4,0.36682]
[1724676906382,0.3668,2725.6,2725.4,0.36682]
[1724676906586,0.36950388,2725.6,2725.4,0.36682]
[1724676906781,0.36950388,2725.6,2725.0,4.80156782]
[1724676906782,0.00270388,2725.6,2725.1,0.91716]
[1724676906981,0.00270388,2725.6,2725.5,0.36681]
[1724676907483,0.00270388,2725.6,2725.5,4.03561]
[1724676907674,3.2078,2725.9,2725.5,12.20561]
[1724676907877,3.2078,2725.9,2725.8,0.36677]
[1724676908077,0.3777,2726.4,2726.2,0.36671]
[1724676908382,4.187,2726.6,2725.9,0.7513]
[1724676908580,0.3667,2726.4,2726.1,0.36672]
[1724676908786,0.37080328,2726.4,2726.1,0.3705098]
[1724676910084,0.3667,2726.3,2726.1,0.0037898]
[1724676910286,0.36671,2726.2,2726.1,0.0037898]
[1724676910678,4.03471,2726.2,2726.1,0.0037898]
[1724676911185,0.36671,2726.2,2726.1,0.0037898]
[1724676911782,3.93521,2726.3,2726.1,0.0037898]
[1724676912089,3.5685,2726.3,2726.1,0.0037898]
[1724676912891,3.93521,2726.3,2726.1,0.3705098]
[1724676913090,0.00410328,2726.4,2726.3,0.3667]
[1724676913278,0.37079328,2726.4,2726.2,1.09921]
[1724676913480,0.00410328,2726.4,2726.3,0.3667]
[1724676913983,0.00410328,2726.4,2726.3,4.0347]
[1724676916091,0.36665,2726.8,2726.3,19.92212632]
[1724676916282,0.36664,2726.8,2726.7,0.36665]
[1724676916480,0.3586,2727.0,2726.7,4.03385]
[1724676916481,0.36663,2726.9,2726.7,4.03385]
[1724676916682,0.36665,2726.7,2726.5,0.36667]
[1724676916878,0.36665,2726.7,2726.6,0.36666]
[1724676917078,0.00348728,2726.7,2726.6,0.36666]
[1724676917283,0.00348728,2726.7,2726.6,4.03386]
[1724676918294,0.37013728,2726.7,2726.5,0.36666]
[1724676918487,0.37013728,2726.7,2726.6,0.36666]
[1724676918682,0.00348728,2726.7,2726.6,0.36666]
[1724676919384,0.00348728,2726.7,2726.6,4.03386]
[1724676920186,0.00348728,2726.7,2726.6,9.95052]
[1724676922298,4.1241,2727.7,2726.6,12.79166]
[1724676922596,0.36657,2727.4,2727.3,0.36657]
[1724676923393,0.3875,2727.6,2727.3,3.6664]
[1724676923701,0.75873917,2727.6,2727.5,0.36654]
[1724676923887,0.00470917,2727.6,2727.5,0.36654]
[1724676924088,0.00470917,2727.6,2727.5,4.03294]
[1724676925097,0.37123917,2727.6,2727.5,4.03294]
[1724676925392,0.00470917,2727.6,2727.5,0.36654]
[1724676925591,0.92103917,2727.6,2727.1,0.0055061]
[1724676925792,0.36657,2727.3,2727.2,0.36657]
[1724676926005,0.36658,2727.2,2727.1,0.3720861]
[1724676926295,1.28304,2727.2,2727.1,0.0055061]
[1724676926494,8.15804,2727.2,2727.1,0.0055061]
[1724676926694,7.79146,2727.2,2726.3,0.7317]
[1724676926898,0.36664,2726.8,2726.7,0.36664]
[1724676927086,0.36664,2726.8,2726.3,1.64845]
[1724676927087,0.36664,2726.8,2726.6,0.36665]
[1724676927286,0.36664,2726.8,2726.7,0.36665]
[1724676927689,0.3767,2726.9,2726.5,0.0055061]
[1724676927901,0.3767,2726.9,2726.8,0.36663]
[1724676929195,0.00547202,2727.0,2726.9,0.36662]
[1724676929694,0.00547202,2727.0,2726.9,4.95038]
[1724676929889,0.00547202,2727.0,2726.9,13.67014]
[1724676930095,0.00547202,2727.0,2726.9,12.75358]
[1724676930892,0.00547202,2727.0,2726.9,11.83702]
[1724676931096,0.00547202,2727.0,2726.9,12.75358]
[1724676931300,0.00547202,2727.0,2726.9,17.75358]
[1724676931507,0.72165,2727.5,2727.4,0.36655]
[1724676931803,0.3551,2727.5,2727.4,0.36655]
[1724676932099,0.72164,2727.5,2727.4,0.36655]
[1724676932400,0.36656,2727.4,2727.3,0.36656]
[1724676932701,0.3551,2727.5,2727.4,0.36655]
[1724676933200,0.00470917,2727.6,2727.5,0.36654]
[1724676933593,0.00470917,2727.6,2727.5,4.9493]
[1724676933792,0.00470917,2727.6,2727.5,4.03294]
[1724676934205,0.00470917,2727.6,2727.5,5.3156]
[1724676934392,0.00470917,2727.6,2727.5,4.39924]
[1724676935194,0.00470917,2727.6,2727.5,0.73284]
[1724676935493,0.37123917,2727.6,2727.5,0.73284]
[1724676935698,0.37123917,2727.6,2727.5,0.36654]
[1724676935892,0.36654,2727.5,2727.4,0.36655]
[1724676936102,0.00470917,2727.6,2727.3,0.36656]
[1724676936103,0.36655,2727.4,2727.3,0.36656]
[1724676936409,0.36655,2727.4,2727.1,0.3514]
[1724676936410,0.36657,2727.3,2727.1,0.3514]
[1724676936598,0.36658,2727.2,2727.1,0.71798]
[1724676936899,0.73337,2727.3,2726.8,0.91658]
[1724676937102,0.36658,2727.2,2726.8,1.26798]
[1724676937298,0.91646,2727.2,2726.8,0.3514]
[1724676937495,0.3666,2727.1,2727.0,0.3666]
[1724676937993,0.36662,2726.9,2726.8,0.71803]
[1724676938190,0.36662,2726.9,2726.8,0.36663]
[1724676938401,0.36662,2727.0,2726.9,0.36662]
[1724676938819,0.3668,2727.3,2727.2,0.36658]
[1724676939103,1.29449,2727.7,2727.5,0.36654]
[1724676939104,3.93323917,2727.6,2727.5,0.36654]
[1724676939304,0.35890917,2727.6,2727.5,0.36654]
[1724676940401,0.00470917,2727.6,2727.5,0.36654]
[1724676940915,0.00470917,2727.6,2727.5,0.73734]
[1724676942606,0.00470917,2727.6,2727.5,4.40374]
[1724676942796,0.00470917,2727.6,2727.5,0.36654]
[1724676944205,1.65626,2728.1,2727.6,0.91632]
[1724676944206,1.10657,2728.1,2727.6,0.91632]
[1724676944396,1.10657,2728.1,2727.7,0.3691]
[1724676944600,0.7401,2728.1,2728.0,0.36647]
[1724676944903,1.10656,2728.1,2728.0,0.36647]
[1724676945206,0.35895037,2728.1,2728.0,0.36647]
[1724676945406,0.00475037,2728.1,2728.0,0.36647]
[1724676945997,0.00475037,2728.1,2728.0,4.03207]
[1724676946199,0.00475037,2728.1,2728.0,4.94826]
[1724676946598,0.00475037,2728.1,2728.0,10.09445]
[1724676946799,0.36638,2728.7,2728.2,0.9161]
[1724676946997,0.36638,2728.7,2728.5,0.36639]
[1724676947412,0.3871,2728.8,2728.5,0.3664]
[1724676947800,0.36639,2728.7,2728.5,0.37060728]
[1724676948003,0.36639,2728.6,2728.5,0.00420728]
[1724676949617,1.28238,2728.6,2728.5,0.00420728]
[1724676949807,4.94718,2728.6,2728.5,0.00420728]
[1724676950121,9.94718,2728.6,2728.5,0.00420728]
[1724676950416,0.36647,2728.0,2727.9,0.0055061]
[1724676951002,1.11317,2728.1,2727.9,0.3719961]
[1724676951320,0.36647,2728.0,2727.9,0.37589287]
[1724676951506,1.11317,2728.1,2727.9,0.00941287]
[1724676951709,1.11317,2728.1,2727.9,0.37589287]
[1724676951905,0.3634,2728.1,2728.0,0.36647]
[1724676952106,4.1238,2728.6,2727.9,0.00941287]
[1724676952107,0.36643,2728.4,2727.9,0.00941287]
[1724676952416,1.11312,2728.5,2728.3,0.36643]
[1724676952807,0.36642,2728.4,2728.3,0.36643]
[1724676953008,0.36642,2728.4,2728.2,0.36644]
[1724676953215,1.11311,2728.5,2728.3,0.36643]
[1724676953412,0.36643,2728.4,2728.2,0.36644]
[1724676953611,0.36643,2728.3,2728.1,0.36645]
[1724676953812,0.36645,2728.2,2728.0,0.36647]
[1724676954415,1.66273,2728.5,2727.9,0.00941287]
[1724676954416,1.66273,2728.5,2727.9,0.37589287]
[1724676954804,0.36647,2728.0,2727.9,0.37589287]
[1724676955012,1.66273,2728.5,2727.9,0.00941287]
[1724676955223,0.91605,2728.4,2728.0,0.36647]
[1724676955515,0.7467,2728.5,2727.9,0.00941287]
[1724676955516,0.36647,2728.0,2727.9,0.00941287]
[1724676955921,1.66273,2728.5,2728.1,0.36645]
[1724676956108,1.66273,2728.5,2727.9,0.00941287]
[1724676956109,0.36644,2728.3,2728.2,0.36645]
[1724676956312,0.36644,2728.3,2727.9,0.00941287]
[1724676956710,1.66273,2728.5,2727.9,0.00941287]
[1724676956711,0.36645,2728.2,2727.9,0.00941287]
[1724676956906,0.36645,2728.2,2728.1,0.36645]
[1724676957117,0.36644,2728.3,2728.2,0.36644]
[1724676957520,0.36644,2728.3,2728.1,0.36645]
[1724676957813,0.3634,2728.5,2728.4,0.36642]
[1724676958913,3.2078,2728.6,2728.5,0.3664]
[1724676959216,0.00289964,2728.8,2728.2,0.7617]
[1724676959413,0.3664,2728.6,2728.2,0.7617]
[1724676959617,1.30052964,2728.8,2728.5,0.3664]
[1724676959618,0.71738,2728.7,2728.5,0.3664]
[1724676959821,0.71738,2728.7,2728.6,0.36639]
[1724676960021,0.71738,2728.7,2728.5,0.3664]
[1724676960228,0.71738,2728.7,2728.6,0.36639]
[1724676960419,0.36641,2728.5,2728.4,0.36641]
[1724676960615,0.373,2728.6,2728.2,0.7617]
[1724676960811,0.351,2728.7,2728.2,1.67781]
[1724676961123,0.00289964,2728.8,2728.7,0.36638]
[1724676962226,0.36925964,2728.8,2728.7,0.36638]
[1724676962421,0.36639,2728.7,2728.2,0.7617]
[1724676962723,1.28516,2728.7,2728.2,0.7617]
[1724676962917,0.36642,2728.4,2728.3,0.36643]
[1724676963316,0.36642,2728.4,2728.3,0.36642]
[1724676963621,0.36643,2728.3,2728.2,0.3747]
[1724676963826,0.36642,2728.4,2728.3,0.36643]
[1724676964024,0.36643,2728.4,2728.2,0.36644]
[1724676964224,0.36641,2728.5,2728.4,0.36642]
[1724676964417,3.2078,2728.6,2728.5,0.3664]
[1724676964618,0.73558,2728.7,2728.6,0.36639]
[1724676965519,0.73558,2728.7,2728.5,0.36639]
[1724676965723,0.3692,2728.7,2728.4,0.73861]
[1724676965922,0.3664,2728.5,2728.3,0.36642]
[1724676966112,0.3664,2728.5,2728.4,0.36642]
[1724676967126,1.28516,2728.7,2728.3,0.36643]
[1724676967127,0.916,2728.6,2728.3,0.36643]
[1724676967322,0.3692,2728.7,2728.6,0.36639]
[1724676967323,0.73558,2728.7,2728.6,0.36639]
[1724676967931,0.36639,2728.6,2728.5,0.3664]
[1724676968929,0.36641,2728.5,2728.4,0.36641]
[1724676969123,0.3692,2728.7,2728.1,4.5893]
[1724676969325,0.36643,2728.4,2728.3,0.36643]
[1724676969731,0.36643,2728.4,2728.1,0.3593]
[1724676969920,0.36643,2728.4,2728.2,0.36644]
[1724676970234,0.91599,2728.6,2728.1,0.3593]
[1724676970434,0.91599,2728.6,2728.2,0.36644]
[1724676970633,0.36642,2728.4,2728.3,0.36643]
[1724676971126,0.36643,2728.4,2728.3,0.36643]
[1724676973034,0.36643,2728.3,2728.2,0.36644]
[1724676973237,0.91605,2728.4,2727.9,0.37589287]
[1724676973531,1.28266,2728.0,2727.9,0.00941287]
[1724676973731,0.9163,2727.7,2727.3,0.3826]
[1724676973921,0.36655,2727.4,2727.3,0.74915]
[1724676974120,0.3559,2727.6,2727.3,0.3826]
[1724676974329,1.27223,2727.6,2727.3,0.36655]
[1724676974631,0.36656,2727.4,2727.3,0.00288804]
[1724676974823,0.36655,2727.5,2727.3,0.36944804]
[1724676975027,0.36655,2727.4,2727.3,0.36944804]
[1724676975533,4.94934,2727.4,2727.3,0.00288804]
[1724676976521,4.94934,2727.4,2727.2,0.0055061]
[1724676976522,0.36657,2727.3,2727.2,0.0055061]
[1724676976827,5.33199,2727.3,2727.2,0.0055061]
[1724676977627,5.33199,2727.3,2727.2,0.00881824]
[1724676978033,1.66559,2727.3,2727.2,0.00881824]
[1724676978734,5.33199,2727.3,2727.2,0.00881824]
[1724676979037,10.33199,2727.3,2727.2,0.00881824]
[1724676979936,5.33199,2727.3,2727.2,0.00881824]
[1724676980138,10.33199,2727.3,2727.2,0.00881824]
[1724676980325,4.03297,2727.3,2727.2,0.00881824]
[1724676980532,0.36657,2727.3,2727.2,0.00881824]
[1724676980935,0.36657,2727.3,2727.2,0.37539824]
[1724676981128,0.36657,2727.3,2727.2,0.00881824]
[1724676981930,5.86581,2727.3,2727.2,0.00881824]
[1724676982130,11.24731,2727.3,2727.2,0.00881824]
[1724676983233,6.24731,2727.3,2727.2,0.00881824]
[1724676984136,5.33089,2727.3,2727.2,0.00881824]
[1724676984637,0.36657,2727.3,2727.2,0.00881824]
[1724676985029,0.36656,2727.4,2727.3,0.36656]
[1724676985230,0.36656,2727.4,2727.3,0.74486]
[1724676986532,0.36656,2727.4,2727.3,0.3783]
[1724676986930,0.36656,2727.4,2727.3,0.74487]
[1724676988437,0.36656,2727.4,2727.3,0.3783]
[1724676989228,0.0055061,2727.7,2727.3,0.3783]
[1724676989433,0.0055061,2727.7,2727.5,0.36654]
[1724676989928,0.0055061,2727.7,2727.3,0.3783]
[1724676989929,0.36654,2727.5,2727.4,0.36654]
[1724676990133,0.36654,2727.6,2727.3,0.3783]
[1724676990338,0.0055061,2727.7,2727.3,0.3783]
[1724676990535,0.36653,2727.6,2727.5,0.36653]
[1724676991041,0.0055061,2727.7,2727.6,0.36653]
[1724676991256,0.0055061,2727.7,2727.5,3.92013]
[1724676991450,0.36653,2727.6,2727.5,3.17]
[1724676991745,0.36655,2727.5,2727.4,0.36655]
[1724676992340,0.36653,2727.6,2727.3,0.74486]
[1724676992745,0.36654,2727.5,2727.3,0.3783]
[1724676993046,0.36653,2727.6,2727.5,0.36653]
[1724676993345,0.0055061,2727.7,2727.6,0.36653]
[1724676994645,0.36653,2727.6,2727.5,0.36653]
[1724676996056,0.0055061,2727.7,2727.6,0.36653]
[1724676996647,0.0055061,2727.7,2727.6,4.41463]
[1724676996946,0.3720161,2727.7,2727.5,0.36653]
[1724676997144,0.9218061,2727.7,2727.3,0.3783]
[1724676997338,0.36655,2727.5,2727.3,0.74486]
[1724676997539,0.36655,2727.4,2727.3,0.3783]
[1724676998345,0.36655,2727.4,2727.3,0.74487]
[1724676998543,0.36655,2727.4,2727.3,0.3783]
[1724676998950,0.36655,2727.4,2727.3,0.74487]
[1724676999248,0.36655,2727.4,2727.3,0.3783]
[1724676999542,0.36655,2727.5,2727.3,0.74487]
[1724676999948,0.3738,2727.6,2727.3,0.74487]
[1724677000249,0.36654,2727.5,2727.3,0.74487]
[1724677000845,0.36655,2727.4,2727.3,0.3783]
[1724677001047,0.36654,2727.5,2727.3,0.3783]
[1724677001349,0.36655,2727.4,2727.3,0.74486]
[1724677001649,0.36655,2727.4,2727.3,0.3783]
[1724677001844,0.3738,2727.6,2727.3,0.74487]
[1724677002043,0.36655,2727.4,2727.3,0.3783]
[1724677002345,0.36655,2727.4,2727.3,0.74487]
[1724677002943,0.36655,2727.5,2727.4,0.36655]
[1724677003258,0.3738,2727.6,2727.4,0.36655]
[1724677003548,0.36653,2727.6,2727.5,0.36654]
[1724677004245,0.0055061,2727.7,2727.3,0.3783]
[1724677004439,0.36653,2727.6,2727.3,0.3783]
[1724677004637,0.36653,2727.6,2727.5,0.36654]
[1724677006953,0.0055061,2727.7,2727.2,0.00881824]
[1724677007145,0.0055061,2727.7,2727.3,0.72246]
[1724677007146,0.36657,2727.4,2727.3,0.72246]
[1724677007453,1.28296,2727.4,2727.3,0.3559]
[1724677009151,0.36657,2727.4,2727.3,0.3559]
[1724677009458,0.36657,2727.4,2727.3,0.72247]
[1724677009957,0.36657,2727.4,2727.3,0.3559]
[1724677010459,0.36655,2727.5,2727.4,0.36654]
[1724677010651,0.36653,2727.6,2727.5,0.36653]
[1724677010853,0.3720161,2727.7,2727.6,0.36653]
[1724677011049,0.0055061,2727.7,2727.6,0.36653]
[1724677011357,0.0055061,2727.7,2727.6,4.40533]
[1724677012347,0.3720161,2727.7,2727.6,4.40533]
[1724677012850,0.0055061,2727.7,2727.6,4.40533]
[1724677013447,0.3720161,2727.7,2727.6,4.40533]
[1724677014655,0.36653,2727.6,2727.5,0.36653]
[1724677015054,0.36653,2727.6,2727.3,0.3559]
[1724677015055,0.0055061,2727.7,2727.6,0.36653]
[1724677015447,0.0055061,2727.7,2727.6,4.03293]
[1724677015748,0.3720161,2727.7,2727.6,4.03293]
[1724677016654,0.0055061,2727.7,2727.6,4.03293]
[1724677017267,0.0055061,2727.7,2727.6,7.20293]
[1724677018553,0.0055061,2727.7,2727.6,8.14804001]
[1724677018960,0.0055061,2727.7,2727.6,9.06436001]
[1724677019149,0.0055061,2727.7,2727.6,9.98068001]
[1724677019470,0.0055061,2727.7,2727.6,21.49175022]
[1724677019757,0.0055061,2727.7,2727.6,20.0740852]
[1724677019960,0.3672,2728.5,2728.4,0.36642]
[1724677020156,0.36642,2728.4,2728.0,4.12897497]
[1724677020356,0.36642,2728.4,2728.3,0.36643]
[1724677020859,0.36647,2728.1,2728.0,1.32544497]
[1724677021165,0.36647,2728.1,2728.0,0.36647]
[1724677021362,0.36647,2728.1,2728.0,1.32544497]
[1724677022465,0.36644,2728.3,2728.2,0.36644]
[1724677022758,1.29447,2728.4,2728.0,0.95897497]
[1724677022964,0.36646,2728.1,2728.0,0.36646]
[1724677023176,0.3778,2728.3,2727.9,0.95897497]
[1724677023362,0.36645,2728.2,2728.1,0.36645]
[1724677023554,0.36644,2728.3,2728.2,0.36644]
[1724677024156,0.74483,2728.4,2728.3,0.36643]
[1724677024556,1.27129,2728.6,2728.0,4.08618]
[1724677024753,0.36641,2728.5,2728.1,0.91615]
[1724677025061,0.36641,2728.5,2728.3,0.36642]
[1724677025260,0.36642,2728.4,2728.3,0.36642]
[1724677025655,0.916,2728.6,2728.2,0.72654]
[1724677025857,0.36643,2728.4,2728.3,0.36643]
[1724677026258,0.36641,2728.5,2728.4,0.36641]
[1724677028257,1.29956,2728.7,2728.3,0.3603]
[1724677028258,0.3664,2728.6,2728.5,0.36639]
[1724677028967,0.3836,2728.7,2728.4,0.36641]
[1724677028968,0.36641,2728.5,2728.4,0.36641]
[1724677029666,0.3836,2728.7,2728.5,0.3664]
[1724677029872,0.74999,2728.7,2728.6,0.36639]
[1724677030770,0.74999,2728.7,2728.3,1.64648]
[1724677030771,0.3664,2728.6,2728.5,0.3664]
[1724677031272,0.74998,2728.7,2728.6,0.36639]
[1724677031466,0.36639,2728.6,2728.5,0.36639]
[1724677031677,3.21069964,2728.8,2728.3,0.3603]
[1724677031678,3.57239964,2728.8,2728.3,0.3603]
[1724677031871,0.91596,2728.7,2728.1,3.53645]
[1724677032172,0.36644,2728.3,2728.2,0.36644]
[1724677032369,0.91604,2728.5,2728.1,3.17]
[1724677032568,0.36644,2728.3,2728.2,0.36643]
[1724677033164,0.36643,2728.4,2728.2,0.36643]
[1724677033366,0.36641,2728.5,2728.3,0.36642]
[1724677033574,0.91599,2728.6,2728.4,3.17]
[1724677033575,0.3664,2728.6,2728.4,3.17]
[1724677033775,0.3664,2728.6,2728.5,0.3819]
[1724677034276,0.3664,2728.6,2728.5,0.7483]
[1724677034466,0.36638,2728.7,2728.6,0.36638]
[1724677035869,0.36639,2728.6,2728.5,1.1122]
[1724677036177,0.36639,2728.6,2728.5,0.7458]
[1724677036379,0.36639,2728.6,2728.5,0.3664]
[1724677036587,0.91602,2728.5,2728.2,3.2078]
[1724677036769,0.91602,2728.5,2728.3,0.36643]
[1724677036770,0.36643,2728.4,2728.3,0.36643]
[1724677036966,0.7344,2728.5,2728.2,3.2078]
[1724677037165,0.36643,2728.4,2728.3,0.36643]
[1724677037370,0.36643,2728.3,2728.2,3.57424]
[1724677037574,0.7344,2728.5,2728.2,3.57423]
[1724677037575,0.36643,2728.4,2728.2,3.57423]
[1724677037978,0.36642,2728.4,2728.2,3.57423]
[1724677038277,0.36642,2728.4,2728.3,0.36643]
[1724677038471,0.36638,2728.7,2728.6,0.36639]
[1724677038671,0.73097964,2728.8,2728.6,0.36638]
[1724677039178,0.73097964,2728.8,2728.4,3.8953]
[1724677039179,0.00289964,2728.8,2728.7,0.36638]
[1724677039570,0.00289964,2728.8,2728.7,3.53638]
[1724677041480,0.36925964,2728.8,2728.7,3.53638]
[1724677041776,0.36925964,2728.8,2728.4,3.8953]
[1724677041983,0.36925964,2728.8,2728.6,0.36638]
[1724677042183,0.00289964,2728.8,2728.5,0.3664]
[1724677042483,0.3664,2728.6,2728.4,4.26171]
[1724677042670,0.3664,2728.6,2728.5,0.3664]
[1724677043284,0.36639,2728.7,2728.5,0.3664]
[1724677043479,0.3664,2728.6,2728.4,4.26171]
[1724677043683,0.7318,2728.5,2728.4,0.3752]
[1724677043983,0.36642,2728.4,2728.2,3.2078]
[1724677044390,4.03202,2728.4,2728.0,1.10177]
[1724677044680,0.36646,2728.1,2728.0,1.10177]
[1724677044874,0.36646,2728.1,2728.0,0.7353]
[1724677045187,0.36647,2728.0,2727.8,0.36649]
[1724677045480,0.3499,2728.0,2727.9,0.36648]
[1724677046272,0.71637,2728.0,2727.9,0.36648]
[1724677046473,0.71637,2728.0,2727.7,0.3607]
[1724677047080,0.3499,2728.0,2727.9,0.36648]
[1724677047681,0.3499,2728.0,2727.7,0.3607]
[1724677047682,0.3665,2727.8,2727.7,0.3607]
[1724677048182,0.36649,2727.9,2727.7,0.3607]
[1724677048384,0.3499,2728.0,2727.8,0.36649]
[1724677048578,0.71638,2728.0,2727.8,0.36649]
[1724677048775,0.3665,2727.8,2727.7,0.3607]
[1724677048975,0.3499,2728.0,2727.7,0.3607]
[1724677048976,0.36649,2727.9,2727.7,0.3607]
[1724677049483,0.71638,2728.0,2727.7,0.3607]
[1724677049683,0.3499,2728.0,2727.9,0.36648]
[1724677050377,0.3499,2728.0,2727.8,0.36649]
[1724677050775,0.71638,2728.0,2727.8,0.36649]
[1724677051176,0.36648,2727.9,2727.8,0.36649]
[1724677051375,0.3665,2727.8,2727.7,0.3665]
[1724677051585,0.3665,2727.8,2727.6,3.94192]
[1724677052080,0.3665,2727.8,2727.7,0.36651]
[1724677052273,0.3634,2727.9,2727.6,0.3676]
[1724677052478,0.36651,2727.7,2727.6,0.73412]
[1724677052885,0.36651,2727.7,2727.6,0.3676]
[1724677053074,3.6664,2727.7,2727.4,0.75035]
[1724677053271,0.36655,2727.4,2727.2,4.55309321]
[1724677053584,0.36654,2727.5,2727.2,4.55309321]
[1724677053782,0.36653,2727.6,2727.4,0.36654]
[1724677053983,0.36653,2727.6,2727.2,4.55309321]
[1724677054179,0.36652,2727.7,2727.5,0.36654]
[1724677054485,0.36653,2727.6,2727.4,0.36654]
[1724677054983,0.36653,2727.6,2727.5,0.36654]
[1724677055578,0.36653,2727.6,2727.4,0.36654]
[1724677055983,0.36653,2727.6,2727.5,0.36654]
[1724677056885,0.36653,2727.6,2727.4,0.36654]
[1724677057287,0.36654,2727.5,2727.4,0.36654]
[1724677057778,0.36654,2727.6,2727.4,0.36654]
[1724677057977,0.36654,2727.5,2727.4,0.36654]
[1724677058478,0.36654,2727.6,2727.4,0.36654]
[1724677058981,0.36654,2727.6,2727.5,0.36654]
[1724677059180,0.36652,2727.7,2727.5,0.36653]
[1724677059476,0.36653,2727.6,2727.5,0.36653]
[1724677059884,0.36651,2727.7,2727.2,5.46953321]
[1724677060378,0.71801,2727.8,2727.2,5.46953321]
[1724677060582,0.36651,2727.8,2727.7,0.36651]
[1724677061783,0.36651,2727.8,2727.7,0.73451]
[1724677062378,4.58265,2727.8,2727.3,0.95897497]
[1724677062581,0.36655,2727.5,2727.4,0.36653]
[1724677065493,0.3565,2727.6,2727.2,4.92003787]
[1724677065494,0.36656,2727.4,2727.2,4.92003787]
[1724677065800,0.36657,2727.3,2727.2,4.92003787]
[1724677066097,0.36657,2727.3,2727.2,3.96181824]
[1724677066595,0.36657,2727.3,2727.2,4.32839824]
[1724677067094,0.36657,2727.3,2727.2,3.58319824]
[1724677067987,0.36657,2727.3,2727.2,3.21661824]
[1724677069697,1.65494,2727.6,2727.2,3.58319824]
[1724677070000,0.36651,2727.8,2727.7,0.3665]
[1724677070596,4.03291,2727.8,2727.7,0.3665]
[1724677070791,0.36651,2727.8,2727.7,0.3665]
[1724677071184,0.36649,2727.9,2727.8,0.36649]
[1724677071586,0.3665,2727.8,2727.7,0.3665]
[1724677072200,0.36651,2727.7,2727.6,0.71842]
[1724677072693,0.36651,2727.7,2727.6,0.3519]
[1724677073000,0.36655,2727.5,2727.4,0.36655]
[1724677073195,0.36656,2727.4,2727.3,0.36656]
[1724677073699,0.3715,2727.6,2727.2,4.91809587]
[1724677073891,0.91635,2727.5,2727.2,4.55152587]
[1724677074291,0.36655,2727.4,2727.3,0.36657]
[1724677074493,0.36655,2727.4,2727.2,4.91809587]
[1724677075392,0.36657,2727.3,2727.2,4.91809587]
[1724677075600,1.28784,2727.6,2727.2,4.91809587]
[1724677075601,0.36656,2727.4,2727.2,4.91809587]
[1724677076594,0.36657,2727.3,2727.2,4.55152587]
[1724677077098,0.36657,2727.3,2727.2,4.91810587]
[1724677077802,0.36657,2727.3,2727.2,3.96029824]
[1724677078496,0.36657,2727.3,2727.2,3.59371824]
[1724677079804,0.36657,2727.3,2727.2,3.96029824]
[1724677080397,0.36657,2727.3,2727.2,3.59371824]
[1724677080603,0.36657,2727.3,2727.2,3.96029824]
[1724677080901,0.36657,2727.3,2727.2,3.59371824]
[1724677082310,4.94939,2727.3,2727.2,0.00881824]
[1724677082497,6.23611,2727.3,2727.2,0.00881824]
[1724677082808,1.28313,2727.0,2726.9,0.3]
[1724677082999,2.19965,2727.0,2726.9,0.3]
[1724677083197,5.86685,2727.0,2726.9,0.3]
[1724677083802,4.95033,2727.0,2726.9,0.30452846]
[1724677084002,4.03381,2727.0,2726.9,0.67114846]
[1724677084611,4.03381,2727.0,2726.9,1.03014846]
[1724677084807,4.03381,2727.0,2726.9,0.66352846]
[1724677087509,4.95033,2727.0,2726.9,0.66352846]
[1724677088206,4.95033,2727.0,2726.9,0.30452846]
[1724677088607,5.86685,2727.0,2726.9,0.30452846]
[1724677088828,15.13133332,2727.0,2726.9,0.30452846]
[1724677090709,14.21481332,2727.0,2726.9,0.30452846]
[1724677091015,1.28313,2727.0,2726.9,0.30452846]
[1724677091220,4.95033,2727.0,2726.9,0.30452846]
[1724677093613,1.28313,2727.0,2726.9,0.30452846]
[1724677094013,0.36661,2727.0,2726.9,0.30452846]
[1724677094209,1.28313,2727.0,2726.9,0.30452846]
[1724677095303,1.28313,2727.0,2726.9,0.68912846]
[1724677096113,0.36661,2727.0,2726.9,0.68912846]
[1724677096816,1.28313,2727.0,2726.9,0.68912846]